[Event "*** Titled Tuesday Blitz"]
[Site "Chess.com"]
[Date "2021.02.09"]
[Round "5"]
[White "MVM2008"]
[Black "jens1102"]
[Result "0-1"]
[WhiteElo "2125"]
[BlackElo "2461"]
[TimeControl "180+1"]
[EndTime "10:57:35 PST"]
[Termination "jens1102 won by resignation"]

1. d4 {[%clk 0:03:00.9]} 1... Nf6 {[%clk 0:02:59.6]} 2. Bg5 {[%clk 0:02:59.4]}
2... Ne4 {[%clk 0:02:59.3]} 3. Bf4 {[%clk 0:02:53.9]} 3... c5 {[%clk 0:02:59.5]}
4. f3 {[%clk 0:02:51.5]} 4... Nf6 {[%clk 0:02:56.6]} 5. d5 {[%clk 0:02:51.5]}
5... e6 {[%clk 0:02:53.9]} 6. c4 {[%clk 0:02:47.8]} 6... exd5 {[%clk 0:02:52]}
7. cxd5 {[%clk 0:02:48]} 7... d6 {[%clk 0:02:52.9]} 8. e4 {[%clk 0:02:47.5]}
8... g6 {[%clk 0:02:52.5]} 9. Nc3 {[%clk 0:02:47.1]} 9... Bg7 {[%clk 0:02:52.9]}
10. Bd3 {[%clk 0:02:43.9]} 10... O-O {[%clk 0:02:52.8]} 11. Nge2 {[%clk
0:02:43.7]} 11... a6 {[%clk 0:02:50.9]} 12. a4 {[%clk 0:02:43]} 12... Nh5 {[%clk
0:02:49.8]} 13. Be3 {[%clk 0:02:36.7]} 13... Nd7 {[%clk 0:02:50.2]} 14. Nf4
{[%clk 0:02:33]} 14... Qh4+ {[%clk 0:02:34.6]} 15. g3 {[%clk 0:02:25.3]} 15...
Nxg3 {[%clk 0:02:09.9]} 16. Ng2 {[%clk 0:01:43.4]} 16... Qh3 {[%clk 0:02:09.8]}
17. Nf4 {[%clk 0:01:38.4]} 17... Qh4 {[%clk 0:02:03.1]} 18. Ng2 {[%clk
0:01:37.9]} 18... Qh5 {[%clk 0:01:25.4]} 19. Nf4 {[%clk 0:00:53.7]} 19... Qh6
{[%clk 0:00:47.7]} 20. Rg1 {[%clk 0:00:09.3]} 20... Qxh2 {[%clk 0:00:37]} 21.
Rg2 {[%clk 0:00:09.4]} 21... Qh4 {[%clk 0:00:35.2]} 22. Kd2 {[%clk 0:00:05.2]}
22... Nh5 {[%clk 0:00:28.8]} 23. Rg4 {[%clk 0:00:02.7]} 23... Qh2+ {[%clk
0:00:20.7]} 24. Rg2 {[%clk 0:00:02.5]} 24... Qh4 {[%clk 0:00:21]} 25. Rg4 {[%clk
0:00:02.8]} 25... Qf6 {[%clk 0:00:17.4]} 26. Nxh5 {[%clk 0:00:02.8]} 26... gxh5
{[%clk 0:00:18.3]} 27. Rg2 {[%clk 0:00:03]} 27... Ne5 {[%clk 0:00:18]} 28. Be2
{[%clk 0:00:02.7]} 28... Bh3 {[%clk 0:00:13.7]} 29. Rg3 {[%clk 0:00:02.4]} 29...
Bd7 {[%clk 0:00:13.1]} 30. Qg1 {[%clk 0:00:02.7]} 30... Kh8 {[%clk 0:00:12.8]}
31. Qg2 {[%clk 0:00:03.1]} 31... Rg8 {[%clk 0:00:12.6]} 32. Rg1 {[%clk
0:00:03.3]} 32... Ng6 {[%clk 0:00:09.3]} 33. Bg5 {[%clk 0:00:03.4]} 33... Qd4+
{[%clk 0:00:09.2]} 34. Bd3 {[%clk 0:00:04]} 34... c4 {[%clk 0:00:09]} 35. Qe2
{[%clk 0:00:02.5]} 35... cxd3 {[%clk 0:00:09.1]} 36. Qxd3 {[%clk 0:00:03.4]}
36... Qxd3+ {[%clk 0:00:09.8]} 37. Kxd3 {[%clk 0:00:04.3]} 37... Ne5+ {[%clk
0:00:10.5]} 38. Kd2 {[%clk 0:00:04.2]} 38... h6 {[%clk 0:00:11.4]} 39. Bf4
{[%clk 0:00:03.8]} 39... h4 {[%clk 0:00:11.9]} 40. R3g2 {[%clk 0:00:03.3]} 40...
Nxf3+ {[%clk 0:00:12.3]} 0-1

[Event "*** Titled Tuesday Blitz"]
[Site "Chess.com"]
[Date "2021.02.09"]
[Round "5"]
[White "jacky72"]
[Black "bocah_sakit"]
[Result "0-1"]
[WhiteElo "2699"]
[BlackElo "2848"]
[TimeControl "180+1"]
[EndTime "10:57:40 PST"]
[Termination "bocah_sakit won by resignation"]

1. d4 {[%clk 0:03:00.9]} 1... Nf6 {[%clk 0:02:59.7]} 2. c4 {[%clk 0:03:01.3]}
2... g6 {[%clk 0:02:58.6]} 3. Nc3 {[%clk 0:03:01.2]} 3... Bg7 {[%clk 0:02:59.5]}
4. e4 {[%clk 0:03:01.6]} 4... d6 {[%clk 0:03:00.2]} 5. Be2 {[%clk 0:03:02.1]}
5... O-O {[%clk 0:03:00.7]} 6. Bg5 {[%clk 0:03:02.8]} 6... h6 {[%clk 0:02:59.3]}
7. Be3 {[%clk 0:03:02.5]} 7... c5 {[%clk 0:02:59.3]} 8. d5 {[%clk 0:03:02.5]}
8... e6 {[%clk 0:02:58.5]} 9. Nf3 {[%clk 0:03:03]} 9... exd5 {[%clk 0:02:57.7]}
10. cxd5 {[%clk 0:03:03.9]} 10... b5 {[%clk 0:02:57.2]} 11. e5 {[%clk
0:03:03.3]} 11... Ng4 {[%clk 0:02:40.7]} 12. Nxb5 {[%clk 0:03:01]} 12... Nxe3
{[%clk 0:02:37.2]} 13. fxe3 {[%clk 0:03:00.9]} 13... dxe5 {[%clk 0:02:29.2]} 14.
e4 {[%clk 0:03:01.4]} 14... Qb6 {[%clk 0:02:24.1]} 15. Qd2 {[%clk 0:02:40.8]}
15... f5 {[%clk 0:02:18.2]} 16. Nc3 {[%clk 0:02:39.6]} 16... fxe4 {[%clk
0:02:16.4]} 17. Nxe4 {[%clk 0:02:40.5]} 17... Bf5 {[%clk 0:02:16.6]} 18. Nc3
{[%clk 0:02:29.4]} 18... e4 {[%clk 0:02:14.8]} 19. Nh4 {[%clk 0:02:29.9]} 19...
Nd7 {[%clk 0:02:12.6]} 20. Nxf5 {[%clk 0:02:12.6]} 20... gxf5 {[%clk 0:02:13.5]}
21. O-O {[%clk 0:02:12.4]} 21... Rab8 {[%clk 0:02:07.8]} 22. Rab1 {[%clk
0:02:09.6]} 22... Ne5 {[%clk 0:02:04.2]} 23. d6 {[%clk 0:02:01.3]} 23... c4+
{[%clk 0:01:59.9]} 24. Kh1 {[%clk 0:02:00.9]} 24... Nd3 {[%clk 0:02:00]} 25. d7
{[%clk 0:01:35.1]} 25... Qd6 {[%clk 0:01:53.2]} 26. Qe3 {[%clk 0:01:28]} 26...
Qxd7 {[%clk 0:01:50.2]} 27. Qg3 {[%clk 0:01:17]} 27... Kh8 {[%clk 0:01:46.4]}
28. Qh4 {[%clk 0:01:10.5]} 28... Qd6 {[%clk 0:01:38.4]} 29. Nd1 {[%clk
0:01:00.8]} 29... f4 {[%clk 0:01:31.7]} 30. Nf2 {[%clk 0:01:01.2]} 30... Qd4
{[%clk 0:01:24.1]} 31. Ng4 {[%clk 0:00:56.8]} 31... Rb6 {[%clk 0:01:20.4]} 32.
h3 {[%clk 0:00:41]} 32... Rg6 {[%clk 0:01:14]} 33. Qh5 {[%clk 0:00:41]} 33...
Rg5 {[%clk 0:01:08]} 34. Qh4 {[%clk 0:00:41.2]} 34... Kh7 {[%clk 0:01:01.7]} 35.
a4 {[%clk 0:00:28.7]} 35... f3 {[%clk 0:00:54.6]} 36. gxf3 {[%clk 0:00:27.9]}
36... Nf4 {[%clk 0:00:54.4]} 37. Rbe1 {[%clk 0:00:19.7]} 37... Rh5 {[%clk
0:00:52.7]} 38. Qe7 {[%clk 0:00:15.9]} 38... Rxh3+ {[%clk 0:00:51.9]} 39. Nh2
{[%clk 0:00:16.5]} 39... e3 {[%clk 0:00:44.1]} 40. Rg1 {[%clk 0:00:12.2]} 40...
Rf5 {[%clk 0:00:41.1]} 41. Rd1 {[%clk 0:00:10.3]} 41... Rxh2+ {[%clk 0:00:37.8]}
42. Kxh2 {[%clk 0:00:10]} 42... Rh5+ {[%clk 0:00:38.1]} 43. Kg3 {[%clk
0:00:10.6]} 43... Nxe2+ {[%clk 0:00:27.2]} 44. Kg2 {[%clk 0:00:10.9]} 44... Nf4+
{[%clk 0:00:25.6]} 45. Kg3 {[%clk 0:00:11.4]} 45... Ne2+ {[%clk 0:00:22.8]} 46.
Kg2 {[%clk 0:00:11.5]} 46... Qf4 {[%clk 0:00:23.5]} 47. Qe4+ {[%clk 0:00:09.2]}
47... Qxe4 {[%clk 0:00:23.7]} 48. fxe4 {[%clk 0:00:10.1]} 48... Nxg1 {[%clk
0:00:24.6]} 49. Rxg1 {[%clk 0:00:09.1]} 49... Bxb2 {[%clk 0:00:24.8]} 50. Kf3
{[%clk 0:00:09.3]} 50... Bd4 {[%clk 0:00:25.4]} 51. Rh1 {[%clk 0:00:09.8]} 51...
Rxh1 {[%clk 0:00:25.5]} 0-1

[Event "*** Titled Tuesday Blitz"]
[Site "Chess.com"]
[Date "2021.02.09"]
[Round "5"]
[White "shaheus"]
[Black "GianmarcoVaR"]
[Result "0-1"]
[WhiteElo "2396"]
[BlackElo "2583"]
[TimeControl "180+1"]
[EndTime "10:57:43 PST"]
[Termination "GianmarcoVaR won by resignation"]

1. e4 {[%clk 0:03:00.9]} 1... c5 {[%clk 0:02:58.4]} 2. Nf3 {[%clk 0:03:01.1]}
2... d6 {[%clk 0:02:58.2]} 3. c3 {[%clk 0:03:01.5]} 3... Nf6 {[%clk 0:02:57.6]}
4. Qb3 {[%clk 0:03:01.6]} 4... Nbd7 {[%clk 0:02:55.1]} 5. d3 {[%clk 0:03:00.3]}
5... Qc7 {[%clk 0:02:53.7]} 6. Na3 {[%clk 0:02:59.1]} 6... a6 {[%clk 0:02:52.2]}
7. Be2 {[%clk 0:02:54.3]} 7... b5 {[%clk 0:02:50.7]} 8. O-O {[%clk 0:02:53.3]}
8... Bb7 {[%clk 0:02:47.4]} 9. Bf4 {[%clk 0:02:50.8]} 9... g6 {[%clk 0:02:27.6]}
10. c4 {[%clk 0:02:37.9]} 10... b4 {[%clk 0:02:21]} 11. Nc2 {[%clk 0:02:35.2]}
11... a5 {[%clk 0:02:20.6]} 12. Ne3 {[%clk 0:02:32.7]} 12... Bg7 {[%clk
0:02:19]} 13. Nd5 {[%clk 0:02:28]} 13... Nxd5 {[%clk 0:01:53.9]} 14. exd5 {[%clk
0:02:23.9]} 14... O-O {[%clk 0:01:47.7]} 15. Rab1 {[%clk 0:02:14.5]} 15... e6
{[%clk 0:01:33.4]} 16. dxe6 {[%clk 0:02:00.1]} 16... fxe6 {[%clk 0:01:34.3]} 17.
Bg3 {[%clk 0:01:59.8]} 17... h6 {[%clk 0:01:16.2]} 18. Qd1 {[%clk 0:01:56.2]}
18... e5 {[%clk 0:01:12.4]} 19. Nd2 {[%clk 0:01:50.2]} 19... Rae8 {[%clk
0:01:02.1]} 20. Bf3 {[%clk 0:01:47]} 20... Nf6 {[%clk 0:00:56]} 21. Ne4 {[%clk
0:01:38.8]} 21... Nh7 {[%clk 0:00:27.2]} 22. Re1 {[%clk 0:01:29.5]} 22... h5
{[%clk 0:00:27.6]} 23. h3 {[%clk 0:01:23.6]} 23... Bh6 {[%clk 0:00:27.8]} 24.
Qe2 {[%clk 0:01:18.1]} 24... Kg7 {[%clk 0:00:27.8]} 25. Rbd1 {[%clk 0:00:54.3]}
25... Rf7 {[%clk 0:00:26.1]} 26. Nd2 {[%clk 0:00:53]} 26... Bxd2 {[%clk
0:00:25.2]} 27. Bxb7 {[%clk 0:00:40.8]} 27... Bxe1 {[%clk 0:00:25.2]} 28. Bd5
{[%clk 0:00:40.4]} 28... Bxf2+ {[%clk 0:00:22.5]} 29. Bxf2 {[%clk 0:00:36.4]}
29... Ref8 {[%clk 0:00:22]} 30. Be3 {[%clk 0:00:35.2]} 30... Rf5 {[%clk
0:00:20.7]} 31. Be4 {[%clk 0:00:32.8]} 31... Qf7 {[%clk 0:00:17.3]} 32. Bxf5
{[%clk 0:00:30.1]} 32... Qxf5 {[%clk 0:00:17.9]} 33. Rf1 {[%clk 0:00:26.7]}
33... Qxf1+ {[%clk 0:00:17.6]} 34. Qxf1 {[%clk 0:00:26.9]} 34... Rxf1+ {[%clk
0:00:18.5]} 35. Kxf1 {[%clk 0:00:27.3]} 35... a4 {[%clk 0:00:18]} 36. b3 {[%clk
0:00:25.8]} 36... axb3 {[%clk 0:00:16.2]} 37. axb3 {[%clk 0:00:25.3]} 37... Kf6
{[%clk 0:00:16.9]} 38. Ke2 {[%clk 0:00:25.5]} 38... Nf8 {[%clk 0:00:17.3]} 39.
Kf3 {[%clk 0:00:21.2]} 39... Ne6 {[%clk 0:00:17.8]} 40. Ke4 {[%clk 0:00:20.5]}
40... Nc7 {[%clk 0:00:15.5]} 41. Bh6 {[%clk 0:00:19.3]} 41... Ke6 {[%clk
0:00:15.1]} 42. Bf8 {[%clk 0:00:18.7]} 42... Na6 {[%clk 0:00:13.3]} 43. g4
{[%clk 0:00:15.7]} 43... hxg4 {[%clk 0:00:12.4]} 44. hxg4 {[%clk 0:00:16]} 44...
Nb8 {[%clk 0:00:13.3]} 45. Bh6 {[%clk 0:00:14.6]} 45... Nc6 {[%clk 0:00:13.1]}
46. Be3 {[%clk 0:00:14.4]} 46... Na5 {[%clk 0:00:13.3]} 0-1

[Event "*** Titled Tuesday Blitz"]
[Site "Chess.com"]
[Date "2021.02.09"]
[Round "5"]
[White "LiamVrolijk"]
[Black "oneshot007"]
[Result "1-0"]
[WhiteElo "2887"]
[BlackElo "2550"]
[TimeControl "180+1"]
[EndTime "10:57:45 PST"]
[Termination "LiamVrolijk won by checkmate"]

1. d4 {[%clk 0:03:00.9]} 1... d5 {[%clk 0:02:58.1]} 2. c4 {[%clk 0:03:00.8]}
2... Nc6 {[%clk 0:02:58.6]} 3. e3 {[%clk 0:02:56.9]} 3... Nf6 {[%clk 0:02:50.4]}
4. Nf3 {[%clk 0:02:51.5]} 4... Bg4 {[%clk 0:02:47.6]} 5. Nc3 {[%clk 0:02:48.8]}
5... e6 {[%clk 0:02:47.4]} 6. h3 {[%clk 0:02:33.1]} 6... Bh5 {[%clk 0:02:44.9]}
7. g4 {[%clk 0:02:33.3]} 7... Bg6 {[%clk 0:02:44.6]} 8. Nh4 {[%clk 0:02:27.1]}
8... Bb4 {[%clk 0:02:26.9]} 9. Nxg6 {[%clk 0:02:14.7]} 9... hxg6 {[%clk
0:02:26.6]} 10. Bd2 {[%clk 0:02:15.6]} 10... g5 {[%clk 0:02:19.4]} 11. Bg2
{[%clk 0:02:04.5]} 11... Bxc3 {[%clk 0:01:47.6]} 12. Bxc3 {[%clk 0:02:05.4]}
12... dxc4 {[%clk 0:01:48.2]} 13. Qa4 {[%clk 0:02:05.1]} 13... Nd5 {[%clk
0:01:46]} 14. Qxc4 {[%clk 0:02:04.7]} 14... O-O {[%clk 0:01:37]} 15. O-O {[%clk
0:02:03.4]} 15... Nce7 {[%clk 0:01:10.2]} 16. Rfc1 {[%clk 0:01:49.8]} 16... c6
{[%clk 0:01:09.8]} 17. Bb4 {[%clk 0:01:47]} 17... Nxb4 {[%clk 0:01:09.2]} 18.
Qxb4 {[%clk 0:01:47.9]} 18... Qd7 {[%clk 0:01:04.6]} 19. Qc5 {[%clk 0:01:42.1]}
19... Nd5 {[%clk 0:00:55.7]} 20. b4 {[%clk 0:01:34.2]} 20... a6 {[%clk
0:00:54.8]} 21. Rab1 {[%clk 0:01:31.5]} 21... Rfd8 {[%clk 0:00:46.3]} 22. a4
{[%clk 0:01:30.4]} 22... g6 {[%clk 0:00:29.7]} 23. Bf1 {[%clk 0:01:04]} 23...
Rac8 {[%clk 0:00:29.3]} 24. Bg2 {[%clk 0:00:57.6]} 24... Kg7 {[%clk 0:00:28.8]}
25. Qc2 {[%clk 0:00:56.4]} 25... Qd6 {[%clk 0:00:24.3]} 26. Qb2 {[%clk 0:00:56]}
26... Nf6 {[%clk 0:00:16.3]} 27. Rc5 {[%clk 0:00:53.6]} 27... Kh6 {[%clk
0:00:11.3]} 28. Rbc1 {[%clk 0:00:50.1]} 28... Nd5 {[%clk 0:00:11.2]} 29. Bxd5
{[%clk 0:00:46.2]} 29... exd5 {[%clk 0:00:11.1]} 30. b5 {[%clk 0:00:46.9]} 30...
axb5 {[%clk 0:00:11.2]} 31. axb5 {[%clk 0:00:47.8]} 31... Kg7 {[%clk 0:00:09.9]}
32. Qc2 {[%clk 0:00:45.9]} 32... Rh8 {[%clk 0:00:09.4]} 33. Kg2 {[%clk
0:00:45.7]} 33... Qe6 {[%clk 0:00:09.1]} 34. bxc6 {[%clk 0:00:23.9]} 34... bxc6
{[%clk 0:00:10]} 35. Qd3 {[%clk 0:00:23.2]} 35... Rh4 {[%clk 0:00:07.9]} 36. Qe2
{[%clk 0:00:17]} 36... f5 {[%clk 0:00:06]} 37. f3 {[%clk 0:00:13.1]} 37... Rhh8
{[%clk 0:00:02.3]} 38. Qf2 {[%clk 0:00:12.8]} 38... Rhe8 {[%clk 0:00:02.5]} 39.
R1c3 {[%clk 0:00:12.2]} 39... Kf6 {[%clk 0:00:02.7]} 40. Qg3 {[%clk 0:00:12.3]}
40... Re7 {[%clk 0:00:02.9]} 41. h4 {[%clk 0:00:11.7]} 41... Rb7 {[%clk
0:00:03.2]} 42. hxg5+ {[%clk 0:00:11.6]} 42... Kxg5 {[%clk 0:00:03.9]} 43. gxf5+
{[%clk 0:00:09.1]} 43... Kxf5 {[%clk 0:00:04.8]} 44. Qf4# {[%clk 0:00:08.4]} 1-0

[Event "*** Titled Tuesday Blitz"]
[Site "Chess.com"]
[Date "2021.02.09"]
[Round "5"]
[White "CheckThis4"]
[Black "Bulldog167"]
[Result "0-1"]
[WhiteElo "2596"]
[BlackElo "2837"]
[TimeControl "180+1"]
[EndTime "10:57:46 PST"]
[Termination "Bulldog167 won by resignation"]

1. e4 {[%clk 0:03:00.9]} 1... c5 {[%clk 0:02:59.9]} 2. Nf3 {[%clk 0:02:58.2]}
2... Nc6 {[%clk 0:02:59.6]} 3. Nc3 {[%clk 0:02:57.1]} 3... d6 {[%clk 0:02:57.4]}
4. d4 {[%clk 0:02:54.4]} 4... cxd4 {[%clk 0:02:58.3]} 5. Nxd4 {[%clk 0:02:54.5]}
5... Nf6 {[%clk 0:02:58.8]} 6. Bg5 {[%clk 0:02:53.5]} 6... e6 {[%clk 0:02:58.3]}
7. Qd2 {[%clk 0:02:51.8]} 7... a6 {[%clk 0:02:57.7]} 8. O-O-O {[%clk 0:02:47.3]}
8... Bd7 {[%clk 0:02:58]} 9. Kb1 {[%clk 0:02:43.8]} 9... h6 {[%clk 0:02:50.2]}
10. Be3 {[%clk 0:02:37.2]} 10... Ng4 {[%clk 0:02:41.2]} 11. Nxc6 {[%clk
0:02:33.8]} 11... bxc6 {[%clk 0:02:34]} 12. Bf4 {[%clk 0:02:31.3]} 12... e5
{[%clk 0:02:32]} 13. Bg3 {[%clk 0:02:26.9]} 13... Be7 {[%clk 0:02:23.2]} 14. h3
{[%clk 0:02:22.6]} 14... Nf6 {[%clk 0:02:23.1]} 15. Bc4 {[%clk 0:02:22.3]} 15...
Be6 {[%clk 0:02:22.3]} 16. Bxe6 {[%clk 0:02:17.2]} 16... fxe6 {[%clk 0:02:23.2]}
17. f4 {[%clk 0:02:16]} 17... exf4 {[%clk 0:02:22.2]} 18. Bxf4 {[%clk
0:02:10.6]} 18... e5 {[%clk 0:02:22.6]} 19. Be3 {[%clk 0:02:07.1]} 19... Qc8
{[%clk 0:02:22.5]} 20. g4 {[%clk 0:02:01.7]} 20... Qe6 {[%clk 0:02:21.9]} 21.
Rhg1 {[%clk 0:01:49.5]} 21... O-O-O {[%clk 0:02:20.7]} 22. Qd3 {[%clk
0:01:36.5]} 22... Kb7 {[%clk 0:02:20.7]} 23. Na4 {[%clk 0:01:27.9]} 23... c5
{[%clk 0:02:13.7]} 24. h4 {[%clk 0:01:13.8]} 24... Qd7 {[%clk 0:01:25.1]} 25.
Nc3 {[%clk 0:00:55.5]} 25... Qc6 {[%clk 0:01:25.2]} 26. g5 {[%clk 0:00:55]}
26... hxg5 {[%clk 0:01:26.1]} 27. hxg5 {[%clk 0:00:55.1]} 27... Nd7 {[%clk
0:01:26.7]} 28. Nd5 {[%clk 0:00:54.9]} 28... Rde8 {[%clk 0:01:21.3]} 29. a4
{[%clk 0:00:50.7]} 29... Bd8 {[%clk 0:01:20.5]} 30. Qb3+ {[%clk 0:00:48.2]}
30... Ka7 {[%clk 0:01:16.5]} 31. Rgf1 {[%clk 0:00:47.9]} 31... Rhf8 {[%clk
0:01:15.8]} 32. Rf5 {[%clk 0:00:39.2]} 32... g6 {[%clk 0:01:09.9]} 33. Rff1
{[%clk 0:00:36.1]} 33... Nb6 {[%clk 0:01:09]} 34. Nxb6 {[%clk 0:00:30.1]} 34...
Bxb6 {[%clk 0:01:04.4]} 35. Rf7+ {[%clk 0:00:30]} 35... Ka8 {[%clk 0:00:58.2]}
36. Rdf1 {[%clk 0:00:29.3]} 36... Rxf7 {[%clk 0:00:43.1]} 37. Qxf7 {[%clk
0:00:27.5]} 37... Rb8 {[%clk 0:00:43.6]} 38. Qd5 {[%clk 0:00:22.1]} 38... Qxd5
{[%clk 0:00:43.3]} 39. exd5 {[%clk 0:00:23]} 39... Ba5 {[%clk 0:00:24.9]} 40.
Rf6 {[%clk 0:00:21]} 40... Bc3 {[%clk 0:00:23.8]} 41. b3 {[%clk 0:00:20.1]}
41... c4 {[%clk 0:00:21.1]} 42. Rxd6 {[%clk 0:00:18.5]} 42... cxb3 {[%clk
0:00:21.4]} 43. cxb3 {[%clk 0:00:19]} 43... Rxb3+ {[%clk 0:00:20]} 44. Kc2
{[%clk 0:00:19.5]} 44... Ra3 {[%clk 0:00:20.5]} 45. Rxa6+ {[%clk 0:00:18.9]}
45... Kb7 {[%clk 0:00:21.1]} 46. Rxg6 {[%clk 0:00:18.6]} 46... Ba5 {[%clk
0:00:18.8]} 47. Bc5 {[%clk 0:00:17.3]} 47... Rc3+ {[%clk 0:00:19]} 48. Kb2
{[%clk 0:00:15]} 48... Rxc5 {[%clk 0:00:19.9]} 49. d6 {[%clk 0:00:15.5]} 49...
Kc6 {[%clk 0:00:17.3]} 50. Re6 {[%clk 0:00:13.6]} 50... Kd5 {[%clk 0:00:17.2]}
51. d7 {[%clk 0:00:13.1]} 51... Kxe6 {[%clk 0:00:17.1]} 0-1

[Event "*** Titled Tuesday Blitz"]
[Site "Chess.com"]
[Date "2021.02.09"]
[Round "5"]
[White "rogapa"]
[Black "NMJeevanK"]
[Result "1-0"]
[WhiteElo "2734"]
[BlackElo "2507"]
[TimeControl "180+1"]
[EndTime "10:57:47 PST"]
[Termination "rogapa won by resignation"]

1. e4 {[%clk 0:03:00.9]} 1... e5 {[%clk 0:03:00]} 2. Nf3 {[%clk 0:03:00.7]} 2...
Nc6 {[%clk 0:03:00.6]} 3. Bc4 {[%clk 0:03:00.3]} 3... Bc5 {[%clk 0:02:57.1]} 4.
c3 {[%clk 0:03:00.1]} 4... Nge7 {[%clk 0:02:51.6]} 5. d4 {[%clk 0:02:55.5]} 5...
exd4 {[%clk 0:02:51.9]} 6. cxd4 {[%clk 0:02:53.2]} 6... Bb4+ {[%clk 0:02:52]} 7.
Nc3 {[%clk 0:02:52]} 7... O-O {[%clk 0:02:49.7]} 8. O-O {[%clk 0:02:46.1]} 8...
Bxc3 {[%clk 0:02:45.1]} 9. bxc3 {[%clk 0:02:47]} 9... d5 {[%clk 0:02:45.5]} 10.
exd5 {[%clk 0:02:27.6]} 10... Nxd5 {[%clk 0:02:46.4]} 11. Bd2 {[%clk 0:02:18.5]}
11... Be6 {[%clk 0:02:39.7]} 12. Bd3 {[%clk 0:02:16.5]} 12... Bg4 {[%clk
0:02:34.8]} 13. Rb1 {[%clk 0:02:08.8]} 13... Rb8 {[%clk 0:02:32.3]} 14. Re1
{[%clk 0:01:57.2]} 14... Qf6 {[%clk 0:02:28.9]} 15. Be4 {[%clk 0:01:55.9]} 15...
Nb6 {[%clk 0:02:25.6]} 16. Qc2 {[%clk 0:01:54.4]} 16... g6 {[%clk 0:02:13.6]}
17. Bg5 {[%clk 0:01:49.5]} 17... Qd6 {[%clk 0:02:10.7]} 18. h3 {[%clk
0:01:47.9]} 18... Be6 {[%clk 0:02:06.6]} 19. Bh6 {[%clk 0:01:34]} 19... Rfe8
{[%clk 0:02:06.6]} 20. Qd2 {[%clk 0:01:34]} 20... Bd5 {[%clk 0:01:54]} 21. Bxd5
{[%clk 0:01:12.6]} 21... Qxd5 {[%clk 0:01:41.9]} 22. Qf4 {[%clk 0:01:11.1]}
22... Qd6 {[%clk 0:01:30.2]} 23. Qh4 {[%clk 0:01:10.4]} 23... Ne7 {[%clk
0:00:58.6]} 24. Bf4 {[%clk 0:00:58]} 24... Qa3 {[%clk 0:00:51]} 25. Ng5 {[%clk
0:00:54]} 25... h5 {[%clk 0:00:49.4]} 26. Ne4 {[%clk 0:00:49.9]} 26... Nbd5
{[%clk 0:00:31.5]} 27. Be5 {[%clk 0:00:42.1]} 27... Nf5 {[%clk 0:00:18.2]} 28.
Nf6+ {[%clk 0:00:41.8]} 28... Kf8 {[%clk 0:00:10.7]} 29. Qg5 {[%clk 0:00:37]}
29... Nxf6 {[%clk 0:00:09.5]} 30. Qxf6 {[%clk 0:00:37.9]} 30... Qa6 {[%clk
0:00:07.1]} 31. Qh8+ {[%clk 0:00:28.9]} 31... Ke7 {[%clk 0:00:06.9]} 32. Qh7
{[%clk 0:00:28.8]} 32... Qxa2 {[%clk 0:00:02.9]} 33. Bxc7+ {[%clk 0:00:27.7]}
33... Kd7 {[%clk 0:00:03.1]} 34. Bxb8 {[%clk 0:00:27.7]} 34... Rxb8 {[%clk
0:00:03.1]} 35. d5 {[%clk 0:00:27.2]} 35... Nd6 {[%clk 0:00:03.3]} 36. Qg7
{[%clk 0:00:23.1]} 36... Qxd5 {[%clk 0:00:02.6]} 37. Rbd1 {[%clk 0:00:22.9]}
37... Qc5 {[%clk 0:00:03.1]} 38. Qf6 {[%clk 0:00:22.6]} 38... Kc6 {[%clk
0:00:03.3]} 39. c4 {[%clk 0:00:15.3]} 39... Rc8 {[%clk 0:00:03.6]} 40. Rd5
{[%clk 0:00:14.8]} 40... Qb4 {[%clk 0:00:04]} 41. Red1 {[%clk 0:00:13.9]} 41...
Rd8 {[%clk 0:00:03.6]} 42. Qxd8 {[%clk 0:00:13.3]} 42... Nxc4 {[%clk 0:00:04.5]}
43. Qc8+ {[%clk 0:00:11.7]} 43... Kb6 {[%clk 0:00:05]} 44. Rd7 {[%clk
0:00:10.2]} 44... Ka6 {[%clk 0:00:03.9]} 45. Ra1+ {[%clk 0:00:09.8]} 45... Na5
{[%clk 0:00:03.3]} 46. Rxb7 {[%clk 0:00:08.6]} 46... Qxb7 {[%clk 0:00:03.3]} 47.
Rxa5+ {[%clk 0:00:07.9]} 47... Kb6 {[%clk 0:00:03.3]} 48. Rb5+ {[%clk
0:00:07.9]} 1-0